[Event "ESP-chT Div I 2018"]
[Site "Linares"]
[Date "2018.08.10"]
[Round "5"]
[White "Gonzalez Laso, Adrian"]
[Black "Gonzalez Guedes, Iyan"]
[Result "1/2-1/2"]
[ECO "B24"]
[WhiteElo "2168"]
[BlackElo "1925"]
[Annotator "NA"]
[PlyCount "110"]
[EventDate "2018.08.06"]
[EventType "team-tourn"]
[EventCountry "ESP"]
[SourceTitle "playchess.com"]
[Source "ChessBase"]
[SourceQuality "1"]
[TimeControl "40/5400+30:1800+30"]

1. e4 c5 {[%emt 0:00:00]} 2. Nc3 {[%emt 0:00:00]} Nc6 {[%emt 0:00:00]} 3. g3 {[%emt 0:00:06]} g6 {[%emt 0:00:00]} 4. Bg2 {[%emt 0:00:08]} Bg7 {[%emt 0:00:00]} 5. d3 {[%emt 0:00:12]} e6 {[%emt 0:00:00]} 6. Be3 {[%emt 0:00:29]} Nd4 {[%emt 0:00:31]} 7. Qd2 {[%emt 0:01:19]} Ne7 {[%emt 0:00:21]} 8. Nd1 {[%emt 0:01:00]} d6 {[%emt 0:00:41]} 9. c3 {[%emt 0:00:09]} Ndc6 {[%emt 0:00:10]} 10. f4 {[%emt 0:01:01]} O-O {[%emt 0:04:36]} 11. Nf3 {[%emt 0:00:06]} b6 {[%emt 0:04:25]} 12. O-O {[%emt 0:03:11]} d5 {[%emt 0:01:38]} 13. e5 {[%emt 0:04:42]} Ba6 {[%emt 0:07:33]} 14. Re1 {[%emt 0:04:56]} f6 {[%emt 0:04:40]} 15. exf6 {[%emt 0:02:41]} Bxf6 {[%emt 0:00:11]} 16. Bf2 {[%emt 0:00:33]} Qd6 {[%emt 0:01:12]} 17. d4 {[%emt 0:02:41]} cxd4 {[%emt 0:12:29]} 18. Nxd4 {[%emt 0:08:27]} Nxd4 {[%emt 0:01:45]} 19. Bxd4 {[%emt 0:00:32]} Bxd4+ {[%emt 0:01:36]} 20. Qxd4 {[%emt 0:00:35]} Nc6 {[%emt 0:04:05]} 21. Qd2 {[%emt 0:05:52]} Rad8 {[%emt 0:05:11]} 22. Nf2 {[%emt 0:03:21]} e5 {[%emt 0:04:12]} 23. Rad1 {[%emt 0:08:07]} d4 {[%emt 0:08:21]} 24. fxe5 {[%emt 0:24:15]} Qc5 {[%emt 0:13:47]} 25. b4 {[%emt 0:12:33]} dxc3 {[%emt 0:04:29]} 26. Bd5+ {[%emt 0:00:23]} Kh8 {[%emt 0:03:32]} 27. bxc5 {[%emt 0:00:06]} cxd2 {[%emt 0:00:04]} 28. Rxd2 {[%emt 0:00:06]} Bc4 {[%emt 0:02:15]} 29. Red1 {[%emt 0:00:48]} Nxe5 {[%emt 0:00:41]} 30. cxb6 {[%emt 0:03:18]} axb6 {[%emt 0:00:48]} 31. Kg2 {[%emt 0:01:18]} Bxd5+ {[%emt 0:00:38]} 32. Rxd5 {[%emt 0:00:07]} Rxd5 {[%emt 0:00:01]} 33. Rxd5 {[%emt 0:00:09]} Nc4 {[%emt 0:00:16]} 34. Rd7 {[%emt 0:02:33]} Kg8 {[%emt 0:05:37]} 35. Ne4 {[%emt 0:00:39]} Rf7 {[%emt 0:01:43]} 36. Rd4 {[%emt 0:01:57]} Ne3+ {[%emt 0:00:51]} 37. Kh3 {[%emt 0:00:09]} Ra7 {[%emt 0:03:32]} 38. a4 {[%emt 0:00:33]} Ra5 {[%emt 0:00:44]} 39. g4 {[%emt 0:00:26]} h5 {[%emt 0:00:43]} 40. g5 {[%emt 0:00:19]} Nf5 {[%emt 0:01:47]} 41. Rb4 {[%emt 0:31:20]} Ne7 {[%emt 0:31:07]} 42. Kg3 {[%emt 0:01:34]} Kf7 {[%emt 0:00:47]} 43. h4 {[%emt 0:00:18]} Nf5+ {[%emt 0:01:15]} 44. Kh3 {[%emt 0:00:23]} Ne7 {[%emt 0:00:45]} 45. Nd6+ {[%emt 0:05:05]} Kg7 {[%emt 0:01:59]} 46. Nb5 {[%emt 0:00:15]} Ra8 {[%emt 0:00:57]} 47. Kg3 {[%emt 0:00:17]} Rc8 {[%emt 0:00:23]} 48. Kf3 {[%emt 0:01:30]} Nc6 {[%emt 0:00:41]} 49. Rb1 {[%emt 0:00:44]} Na5 {[%emt 0:00:36]} 50. Nd6 {[%emt 0:00:43]} Rc3+ {[%emt 0:00:11]} 51. Ke4 {[%emt 0:02:37]} Rh3 {[%emt 0:00:34]} 52. Rxb6 {[%emt 0:00:07]} Rxh4+ {[%emt 0:00:05]} 53. Kd5 {[%emt 0:00:05]} Rxa4 {[%emt 0:00:26]} 54. Ne8+ {[%emt 0:01:16]} Kf7 {[%emt 0:00:16]} 55. Nd6+ {[%emt 0:00:06]} Kg7 {[%emt 0:00:02] Ke4} 1/2-1/2

[Event "ESP-chT Div I 2018"]
[Site "Linares"]
[Date "2018.08.10"]
[Round "5"]
[White "Garcia Molina, Jose"]
[Black "Martin Capitan, Feliciano"]
[Result "1-0"]
[ECO "D31"]
[WhiteElo "1969"]
[BlackElo "2066"]
[Annotator "NA"]
[PlyCount "67"]
[EventDate "2018.08.06"]
[EventType "team-tourn"]
[EventCountry "ESP"]
[SourceTitle "playchess.com"]
[Source "ChessBase"]
[SourceQuality "1"]
[TimeControl "40/5400+30:1800+30"]

1. d4 {[%emt 0:00:00]} d5 {[%emt 0:00:00]} 2. c4 {[%emt 0:00:00]} e6 {[%emt 0:00:23]} 3. Nc3 {[%emt 0:00:00]} c6 {[%emt 0:00:48]} 4. Nf3 {[%emt 0:00:10]} f5 {[%emt 0:00:39]} 5. Qc2 {[%emt 0:02:24]} Nf6 {[%emt 0:01:10]} 6. e3 {[%emt 0:00:55]} Bd6 {[%emt 0:01:26]} 7. Bd3 {[%emt 0:02:43]} O-O {[%emt 0:02:14]} 8. Bd2 {[%emt 0:10:51]} Ne4 {[%emt 0:03:35]} 9. h4 {[%emt 0:03:41]} Nd7 {[%emt 0:05:58]} 10. Rf1 {[%emt 0:15:53]} Ndf6 {[%emt 0:06:00]} 11. O-O-O {[%emt 0:06:06]} Ng4 {[%emt 0:05:06]} 12. Be1 {[%emt 0:01:36]} Bd7 {[%emt 0:04:57]} 13. Bxe4 {[%emt 0:09:50]} fxe4 {[%emt 0:01:46]} 14. Nd2 {[%emt 0:02:53]} Qe7 {[%emt 0:06:11]} 15. Qb3 {[%emt 0:02:22]} Be8 {[%emt 0:08:50]} 16. c5 {[%emt 0:12:25]} Bb8 {[%emt 0:02:10]} 17. Ne2 {[%emt 0:00:39]} Kh8 {[%emt 0:03:06]} 18. f3 {[%emt 0:00:20]} Nh2 {[%emt 0:03:41]} 19. Rf2 {[%emt 0:05:08]} e5 {[%emt 0:12:27]} 20. fxe4 {[%emt 0:03:17]} Rxf2 {[%emt 0:03:29]} 21. Bxf2 {[%emt 0:00:26]} exd4 {[%emt 0:01:40]} 22. exd4 {[%emt 0:02:22]} Ng4 {[%emt 0:01:52]} 23. Bg1 {[%emt 0:01:04]} dxe4 {[%emt 0:02:03]} 24. Rf1 {[%emt 0:03:19]} e3 {[%emt 0:02:50]} 25. Bxe3 {[%emt 0:00:57]} Nf6 {[%emt 0:01:49]} 26. Bg5 {[%emt 0:07:40]} Bh5 {[%emt 0:10:21]} 27. Nf4 {[%emt 0:03:04]} Bxf4 {[%emt 0:00:52]} 28. Bxf4 {[%emt 0:00:04]} Nd5 {[%emt 0:01:51]} 29. Be5 {[%emt 0:00:31]} b6 {[%emt 0:02:01]} 30. Bd6 {[%emt 0:03:04]} Qxh4 {[%emt 0:00:43]} 31. Qa4 {[%emt 0:00:41]} b5 {[%emt 0:00:58]} 32. Qxa7 {[%emt 0:00:24]} Rg8 {[%emt 0:00:17]} 33. Be5 {[%emt 0:00:20]} Ne3 {[%emt 0:00:51]} 34. Qxg7+ {[%emt 0:00:06]} 1-0

[Event "ESP-chT Div I 2018"]
[Site "Linares"]
[Date "2018.08.10"]
[Round "5"]
[White "Badillo Ramos, Steve"]
[Black "Gonzalez Merino, Alberto"]
[Result "0-1"]
[ECO "C05"]
[WhiteElo "1901"]
[BlackElo "2199"]
[Annotator "NA"]
[PlyCount "130"]
[EventDate "2018.08.06"]
[EventType "team-tourn"]
[EventCountry "ESP"]
[SourceTitle "playchess.com"]
[Source "ChessBase"]
[SourceQuality "1"]
[TimeControl "40/5400+30:1800+30"]

1. e4 {[%emt 0:03:26]} e6 {[%emt 0:00:00]} 2. d4 {[%emt 0:00:29]} d5 {[%emt 0:00:00]} 3. Nd2 {[%emt 0:00:16]} Nf6 {[%emt 0:01:01]} 4. e5 {[%emt 0:00:06]} Nfd7 {[%emt 0:00:12]} 5. Bd3 {[%emt 0:00:09]} c5 {[%emt 0:00:41]} 6. c3 {[%emt 0:00:06]} Nc6 {[%emt 0:00:35]} 7. Ne2 {[%emt 0:01:42]} Qb6 {[%emt 0:01:27]} 8. Nf3 {[%emt 0:00:13]} cxd4 {[%emt 0:02:29]} 9. cxd4 {[%emt 0:00:07]} f6 {[%emt 0:00:18]} 10. exf6 {[%emt 0:00:05]} Nxf6 {[%emt 0:00:04]} 11. O-O {[%emt 0:00:09]} Bd6 {[%emt 0:05:58]} 12. Bf4 {[%emt 0:00:08]} Qc7 {[%emt 0:16:39]} 13. Bxd6 {[%emt 0:04:30]} Qxd6 {[%emt 0:00:02]} 14. Qd2 {[%emt 0:00:31]} O-O {[%emt 0:02:06]} 15. Qf4 {[%emt 0:03:13]} Qxf4 {[%emt 0:10:17]} 16. Nxf4 {[%emt 0:00:02]} Ne4 {[%emt 0:02:15]} 17. Ne2 {[%emt 0:01:43]} Nd6 {[%emt 0:02:48]} 18. Rac1 {[%emt 0:00:58]} Bd7 {[%emt 0:02:16]} 19. Ne5 {[%emt 0:03:13]} Be8 {[%emt 0:03:01]} 20. Rfe1 {[%emt 0:02:32]} g5 {[%emt 0:11:03]} 21. g3 {[%emt 0:14:29]} Nf5 {[%emt 0:01:36]} 22. Bxf5 {[%emt 0:02:47]} Rxf5 {[%emt 0:01:45]} 23. f4 {[%emt 0:03:05]} gxf4 {[%emt 0:01:17]} 24. Nxc6 {[%emt 0:00:56]} Bxc6 {[%emt 0:04:09]} 25. Nxf4 {[%emt 0:00:06]} Kf7 {[%emt 0:02:00]} 26. Nxe6 {[%emt 0:00:59]} Rg8 {[%emt 0:00:47]} 27. Nc5 {[%emt 0:01:23]} Kf6 {[%emt 0:01:22]} 28. Re6+ {[%emt 0:00:43]} Kg5 {[%emt 0:01:08]} 29. Nd3 {[%emt 0:00:45]} Rf6 {[%emt 0:15:06]} 30. Rxf6 {[%emt 0:03:28]} Kxf6 {[%emt 0:00:02]} 31. Ne5 {[%emt 0:00:08]} Kf5 {[%emt 0:06:43]} 32. Nxc6 {[%emt 0:04:49]} bxc6 {[%emt 0:00:01]} 33. Rxc6 {[%emt 0:00:07]} Ke4 {[%emt 0:00:01]} 34. Rc7 {[%emt 0:00:21]} Kxd4 {[%emt 0:00:57]} 35. Rxh7 {[%emt 0:00:11]} Kd3 {[%emt 0:02:01]} 36. Rxa7 {[%emt 0:00:20]} d4 {[%emt 0:00:18]} 37. Rd7 {[%emt 0:02:05]} Ke3 {[%emt 0:02:02]} 38. Kf1 {[%emt 0:03:26]} Rc8 {[%emt 0:00:01]} 39. h4 {[%emt 0:02:03]} d3 {[%emt 0:00:42]} 40. Re7+ {[%emt 0:01:27]} Kd2 {[%emt 0:00:17]} 41. Kg2 {[%emt 0:36:50]} Rd8 {[%emt 0:34:00]} 42. g4 {[%emt 0:02:39]} Kd1 {[%emt 0:00:33]} 43. Rf7 {[%emt 0:00:46]} Ke2 {[%emt 0:00:39]} 44. Re7+ {[%emt 0:00:45]} Kd1 {[%emt 0:00:02]} 45. Rf7 {[%emt 0:27:29]} Ke2 {[%emt 0:00:01]} 46. Re7+ {[%emt 0:02:29]} Kd1 {[%emt 0:00:01]} 47. Rf7 {[%emt 0:04:24]} Rd4 {[%emt 0:00:59]} 48. Rf1+ {[%emt 0:00:17]} Ke2 {[%emt 0:00:08]} 49. Rf2+ {[%emt 0:00:12]} Ke3 {[%emt 0:00:09]} 50. Rf3+ {[%emt 0:00:17]} Ke2 {[%emt 0:00:57]} 51. Rf2+ {[%emt 0:00:04]} Ke3 {[%emt 0:00:03]} 52. Rf3+ {[%emt 0:00:07]} Ke4 {[%emt 0:00:11]} 53. Rf1 {[%emt 0:00:14]} d2 {[%emt 0:00:10]} 54. Rd1 {[%emt 0:00:03]} Ke3 {[%emt 0:00:26]} 55. Kg3 {[%emt 0:00:21]} Rd3 {[%emt 0:00:19]} 56. Rxd2 Rxd2 {[%emt 0:00:09]} 57. g5 {[%emt 0:01:01]} Ke4 {[%emt 0:00:15]} 58. Kg4 {[%emt 0:00:04]} Rg2+ {[%emt 0:00:29]} 59. Kh5 {[%emt 0:00:04]} Kf5 {[%emt 0:00:04]} 60. Kh6 {[%emt 0:00:51]} Rg4 {[%emt 0:01:19]} 61. h5 {[%emt 0:00:26]} Rxg5 {[%emt 0:00:08]} 62. b4 {[%emt 0:00:23]} Kf6 {[%emt 0:00:48]} 63. a4 {[%emt 0:00:21]} Rg4 {[%emt 0:00:07]} 64. Kh7 {[%emt 0:02:59]} Rxb4 {[%emt 0:01:12]} 65. h6 {[%emt 0:00:11]} Rb7+ {[%emt 0:00:23]} 0-1

[Event "ESP-chT Div I 2018"]
[Site "Linares"]
[Date "2018.08.10"]
[Round "5"]
[White "Bermudez Revuelta, Paula"]
[Black "Prado Acebo, Ines"]
[Result "0-1"]
[ECO "C03"]
[WhiteElo "1887"]
[BlackElo "2084"]
[Annotator "NA"]
[PlyCount "62"]
[EventDate "2018.08.06"]
[EventType "team-tourn"]
[EventCountry "ESP"]
[SourceTitle "playchess.com"]
[Source "ChessBase"]
[SourceQuality "1"]
[TimeControl "40/5400+30:1800+30"]

1. e4 {[%emt 0:00:00]} e6 {[%emt 0:00:00]} 2. d4 {[%emt 0:00:00]} d5 {[%emt 0:00:00]} 3. Nd2 {[%emt 0:00:00]} Be7 {[%emt 0:00:00]} 4. Ngf3 {[%emt 0:00:00]} Nf6 {[%emt 0:00:12]} 5. e5 {[%emt 0:00:00]} Nfd7 {[%emt 0:00:05]} 6. c4 {[%emt 0:00:00]} dxc4 {[%emt 0:06:06]} 7. Nxc4 {[%emt 0:00:00]} Nb6 {[%emt 0:14:00]} 8. Nxb6 {[%emt 0:07:52]} axb6 {[%emt 0:00:07]} 9. a3 {[%emt 0:00:50]} Qd5 {[%emt 0:07:54]} 10. Bd3 {[%emt 0:03:50]} Bd7 {[%emt 0:05:23]} 11. Qc2 {[%emt 0:06:04]} Nc6 {[%emt 0:06:11]} 12. Bc4 {[%emt 0:29:58]} Nxd4 {[%emt 0:03:44]} 13. Nxd4 {[%emt 0:02:39]} Qxd4 {[%emt 0:00:23]} 14. Qc3 {[%emt 0:09:07]} Qe4+ {[%emt 0:03:21]} 15. Kf1 {[%emt 0:01:03]} b5 {[%emt 0:05:13]} 16. Be2 {[%emt 0:02:06]} c5 {[%emt 0:19:01]} 17. Bf3 {[%emt 0:03:39]} Qa4 {[%emt 0:01:58]} 18. Be3 {[%emt 0:06:49]} b4 {[%emt 0:01:01]} 19. Qc1 {[%emt 0:03:15]} O-O {[%emt 0:02:54]} 20. g3 {[%emt 0:02:39]} b3 {[%emt 0:05:16]} 21. Kg1 {[%emt 0:05:51]} Qb5 {[%emt 0:01:09]} 22. Qc3 {[%emt 0:05:05]} Rfc8 {[%emt 0:00:56]} 23. a4 {[%emt 0:05:11]} Rxa4 {[%emt 0:03:33]} 24. Rxa4 {[%emt 0:00:02]} Qxa4 {[%emt 0:00:03]} 25. Bxb7 {[%emt 0:00:15]} Rc7 {[%emt 0:01:28]} 26. Bf3 {[%emt 0:00:17]} c4 {[%emt 0:00:35]} 27. Bb6 {[%emt 0:01:26]} Rc8 {[%emt 0:00:21]} 28. Qa5 {[%emt 0:02:28]} c3 {[%emt 0:07:18]} 29. bxc3 {[%emt 0:02:21]} b2 {[%emt 0:03:23]} 30. Qxa4 {[%emt 0:00:45]} Bxa4 {[%emt 0:00:02]} 31. Kg2 {[%emt 0:00:01]} Bc2 {[%emt 0:00:47]} 0-1

[Event "ESP-chT Div I 2018"]
[Site "Linares"]
[Date "2018.08.11"]
[Round "6"]
[White "Pap, Misa"]
[Black "Plazuelo Pascual, Juan"]
[Result "0-1"]
[ECO "C03"]
[WhiteElo "2478"]
[BlackElo "2429"]
[Annotator "ChessBase"]
[PlyCount "98"]
[EventDate "2018.08.06"]
[EventType "team-tourn"]
[EventCountry "ESP"]
[SourceTitle "playchess.com"]
[Source "ChessBase"]
[SourceQuality "1"]
[TimeControl "40/5400+30:1800+30"]

1. e4 {[%emt 0:00:00]} e6 {[%emt 0:00:00]} 2. d4 {[%emt 0:00:00]} d5 {[%emt 0:00:00]} 3. Nd2 {[%emt 0:00:37]} Be7 {[%emt 0:00:00]} 4. Ngf3 {[%emt 0:00:22]} Nf6 {[%emt 0:00:01]} 5. e5 {[%emt 0:00:09]} Nfd7 {[%emt 0:00:06]} 6. Bd3 {[%emt 0:00:44]} c5 {[%emt 0:00:06]} 7. c3 {[%emt 0:00:06]} Nc6 {[%emt 0:00:04]} 8. O-O {[%emt 0:00:55]} g5 {[%emt 0:00:15]} 9. dxc5 {[%emt 0:00:06]} Ndxe5 {[%emt 0:00:12]} 10. Bb5 {[%emt 0:06:34]} Ng6 {[%emt 0:02:31]} 11. Re1 {[%emt 0:04:17]} Bxc5 {[%emt 0:05:21]} 12. Nxg5 {[%emt 0:42:12]} Bxf2+ {[%emt 0:09:50]} 13. Kxf2 {[%emt 0:01:48]} Qxg5 {[%emt 0:01:55]} 14. Nf3 {[%emt 0:00:39]} Qe7 {[%emt 0:26:22]} 15. Be3 {[%emt 0:15:31]} Bd7 {[%emt 0:02:59]} 16. b4 {[%emt 0:01:04]} Rg8 {[%emt 0:06:15]} 17. Bg5 {[%emt 0:09:45]} f6 {[%emt 0:01:42]} 18. Bxc6 {[%emt 0:00:01]} bxc6 {[%emt 0:04:53]} 19. Bh6 {[%emt 0:00:33]} e5 {[%emt 0:12:45]} 20. c4 {[%emt 0:02:48]} Be6 {[%emt 0:01:00]} 21. Qa4 {[%emt 0:04:43]} Kf7 {[%emt 0:01:31]} 22. Kg1 {[%emt 0:04:43]} Rgc8 {[%emt 0:02:45]} 23. Be3 {[%emt 0:01:51]} d4 {[%emt 0:01:18]} 24. Bh6 {[%emt 0:00:09]} c5 {[%emt 0:00:39]} 25. b5 {[%emt 0:00:24]} Kg8 {[%emt 0:02:18]} 26. Qc2 {[%emt 0:00:07]} Qd7 {[%emt 0:02:10]} 27. h4 {[%emt 0:01:11]} Ne7 {[%emt 0:07:47]} 28. Nh2 {[%emt 0:00:01]} Kh8 {[%emt 0:02:24]} 29. Qf2 {[%emt 0:00:44]} Ng8 {[%emt 0:00:14]} 30. Bd2 {[%emt 0:00:23]} Rf8 {[%emt 0:00:59]} 31. Rac1 {[%emt 0:00:17]} Qg7 {[%emt 0:00:13]} 32. Kh1 {[%emt 0:00:48]} Rae8 {[%emt 0:00:42]} 33. Qf3 {[%emt 0:01:55]} Nh6 {[%emt 0:00:24]} 34. Bxh6 {[%emt 0:00:56]} Qxh6 {[%emt 0:00:01]} 35. Qc6 {[%emt 0:00:04]} Qxh4 {[%emt 0:02:31]} 36. Qxc5 {[%emt 0:00:01]} Rg8 {[%emt 0:01:05]} 37. Qc6 {[%emt 0:01:03]} Re7 {[%emt 0:01:26]} 38. Re2 {[%emt 0:00:49]} d3 {[%emt 0:00:58]} 39. Rd2 {[%emt 0:00:18]} e4 {[%emt 0:00:39]} 40. Qd6 {[%emt 0:00:40]} Ree8 {[%emt 0:00:25]} 41. Qd4 {[%emt 0:30:26]} Bg4 {[%emt 0:30:57]} 42. Rf1 {[%emt 0:00:36]} Rg6 {[%emt 0:00:12]} 43. Qe3 {[%emt 0:00:20]} Rh6 {[%emt 0:01:28]} 44. g3 {[%emt 0:00:18]} Qh3 {[%emt 0:00:23]} 45. Kg1 {[%emt 0:00:48]} Be2 {[%emt 0:00:15]} 46. Rf2 {[%emt 0:00:14]} Rg8 {[%emt 0:01:00]} 47. Rg2 {[%emt 0:00:08]} Rhg6 {[%emt 0:00:08]} 48. Qf4 {[%emt 0:01:14]} e3 {[%emt 0:00:43]} 49. Qxe3 {[%emt 0:00:25]} Rxg3 {[%emt 0:00:32]} 0-1

[Event "ESP-chT Div I 2018"]
[Site "Linares"]
[Date "2018.08.11"]
[Round "6"]
[White "Franco Alonso, Alejandro"]
[Black "Bergez, Luc"]
[Result "0-1"]
[ECO "A05"]
[WhiteElo "2410"]
[BlackElo "2327"]
[Annotator "NA RC"]
[PlyCount "94"]
[EventDate "2018.08.06"]
[EventType "team-tourn"]
[EventCountry "ESP"]
[SourceTitle "playchess.com"]
[Source "ChessBase"]
[SourceQuality "1"]
[TimeControl "40/5400+30:1800+30"]

1. Nf3 {[%emt 0:00:00]} Nf6 {[%emt 0:00:00]} 2. c4 {[%emt 0:00:00]} g6 {[%emt 0:00:00]} 3. Nc3 {[%emt 0:00:00]} Bg7 {[%emt 0:00:11]} 4. e4 {[%emt 0:00:14]} d6 {[%emt 0:00:14]} 5. d4 {[%emt 0:00:11]} O-O {[%emt 0:00:12]} 6. h3 {[%emt 0:00:12]} e5 {[%emt 0:00:21]} 7. d5 {[%emt 0:00:06]} Nh5 {[%emt 0:00:28]} 8. Nh2 {[%emt 0:01:05]} Qe8 {[%emt 0:04:35]} 9. Be2 {[%emt 0:00:21]} Nf4 {[%emt 0:01:07]} 10. Bf3 {[%emt 0:00:15]} f5 {[%emt 0:00:57]} 11. g3 {[%emt 0:00:18]} Nxh3 {[%emt 0:00:20]} 12. Bg2 {[%emt 0:00:11]} Qf7 {[%emt 0:01:35]} 13. Qf3 {[%emt 0:01:14]} fxe4 {[%emt 0:06:53]} 14. Nxe4 {[%emt 0:00:37]} Qxf3 {[%emt 0:17:58]} 15. Nxf3 {[%emt 0:02:25]} Na6 {[%emt 0:02:53]} 16. Nfd2 {[%emt 0:12:05]} Nb4 {[%emt 0:00:50]} 17. Bxh3 {[%emt 0:00:48]} Bxh3 {[%emt 0:01:27]} 18. Rxh3 {[%emt 0:00:11]} Nc2+ {[%emt 0:00:10]} 19. Kd1 {[%emt 0:01:12]} Nxa1 {[%emt 0:00:08]} 20. b4 {[%emt 0:13:39]} b5 {[%emt 0:01:32]} 21. cxb5 {[%emt 0:21:34]} a5 {[%emt 0:04:39]} 22. bxa6 {[%emt 0:34:03]} Rxa6 {[%emt 0:00:09]} 23. a3 {[%emt 0:01:27]} c6 {[%emt 0:00:29]} 24. b5 {[%emt 0:00:35]} cxb5 {[%emt 0:00:46]} 25. Bb2 {[%emt 0:00:06]} b4 {[%emt 0:13:48]} 26. Bxa1 {[%emt 0:00:30]} Rxa3 {[%emt 0:03:36]} 27. Bb2 {[%emt 0:01:03]} Rd3 {[%emt 0:00:09]} 28. Ke2 {[%emt 0:01:10]} Rxd5 {[%emt 0:00:15]} 29. g4 {[%emt 0:00:53]} Rd8 {[%emt 0:01:34]} 30. Nc4 {[%emt 0:00:43]} Rc8 {[%emt 0:02:14]} 31. Ne3 {[%emt 0:07:42]} Ra5 {[%emt 0:10:08]} 32. Nxd6 {[%emt 0:00:06]} Rc6 {[%emt 0:00:12]} 33. Ndc4 {[%emt 0:00:22]} Ra2 {[%emt 0:02:33]} 34. Rh1 {[%emt 0:00:26]} e4 {[%emt 0:02:23]} 35. Rb1 {[%emt 0:00:06]} Bxb2 {[%emt 0:01:35]} 36. Nxb2 {[%emt 0:00:25]} Rc3 {[%emt 0:00:26]} 37. Ned1 {[%emt 0:01:31]} h5 {[%emt 0:01:42]} 38. gxh5 {[%emt 0:00:06]} gxh5 {[%emt 0:00:03]} 39. Kd2 {[%emt 0:00:40]} Rd3+ {[%emt 0:01:10]} 40. Ke1 {[%emt 0:00:37]} Rb3 {[%emt 0:00:17]} 41. Rc1 {[%emt 0:30:34]} Rbxb2 {[%emt 0:32:06]} 42. Nxb2 {[%emt 0:00:04]} Rxb2 {[%emt 0:00:11]} 43. Rc4 {[%emt 0:00:48]} b3 {[%emt 0:04:18]} 44. Rb4 {[%emt 0:00:49]} Kg7 {[%emt 0:03:53]} 45. Kf1 {[%emt 0:00:08]} Rb1+ {[%emt 0:03:21]} 46. Ke2 {[%emt 0:00:54]} b2 {[%emt 0:00:22]} 47. Kd2 {[%emt 0:00:15]} Rf1 {[%emt 0:00:11]} 0-1

[Event "ESP-chT Div I 2018"]
[Site "Linares"]
[Date "2018.08.11"]
[Round "6"]
[White "Tejedor Fuente, Enrique"]
[Black "Quesada Perez, Yasser"]
[Result "0-1"]
[ECO "B30"]
[WhiteElo "2408"]
[BlackElo "2534"]
[Annotator "ChessBase"]
[PlyCount "94"]
[EventDate "2018.08.06"]
[EventType "team-tourn"]
[EventCountry "ESP"]
[SourceTitle "playchess.com"]
[Source "ChessBase"]
[SourceQuality "1"]
[TimeControl "40/5400+30:1800+30"]

1. e4 {[%emt 0:02:55]} c5 {[%emt 0:00:00]} 2. Nf3 {[%emt 0:00:09]} Nc6 {[%emt 0:00:00]} 3. c3 {[%emt 0:00:20]} d5 {[%emt 0:00:03]} 4. exd5 {[%emt 0:00:11]} Qxd5 {[%emt 0:00:05]} 5. d4 {[%emt 0:00:07]} Bg4 {[%emt 0:00:15]} 6. Be2 {[%emt 0:00:15]} cxd4 {[%emt 0:02:27]} 7. cxd4 {[%emt 0:00:26]} e6 {[%emt 0:00:06]} 8. O-O {[%emt 0:02:04]} Nf6 {[%emt 0:00:07]} 9. Nc3 {[%emt 0:00:57]} Qa5 {[%emt 0:00:05]} 10. h3 {[%emt 0:03:25]} Bh5 {[%emt 0:00:06]} 11. Be3 {[%emt 0:05:39]} Bd6 {[%emt 0:00:08]} 12. Nd2 {[%emt 0:02:18]} Bxe2 {[%emt 0:03:25]} 13. Qxe2 {[%emt 0:00:01]} O-O {[%emt 0:02:59]} 14. Nc4 {[%emt 0:01:16]} Qd8 {[%emt 0:00:05]} 15. Rfd1 {[%emt 0:01:12]} Nd5 {[%emt 0:16:26]} 16. Rac1 {[%emt 0:22:23]} Rc8 {[%emt 0:10:31]} 17. Nxd5 {[%emt 0:11:18]} exd5 {[%emt 0:00:11]} 18. Ne5 {[%emt 0:09:19]} Bxe5 {[%emt 0:34:57]} 19. dxe5 {[%emt 0:00:01]} Qd7 {[%emt 0:00:10]} 20. Qb5 {[%emt 0:04:55]} d4 {[%emt 0:03:37]} 21. Qa4 {[%emt 0:14:23]} Rcd8 {[%emt 0:01:16]} 22. Bg5 {[%emt 0:11:20]} Rde8 {[%emt 0:00:07]} 23. Be3 {[%emt 0:01:01]} Rd8 {[%emt 0:06:34]} 24. Bg5 {[%emt 0:00:13]} Ra8 {[%emt 0:01:47]} 25. Qb5 {[%emt 0:03:35]} h6 {[%emt 0:00:46]} 26. Bf4 {[%emt 0:01:26]} Rad8 {[%emt 0:00:45]} 27. Qd3 {[%emt 0:01:00]} Qe6 {[%emt 0:00:56]} 28. a3 {[%emt 0:00:34]} Rd5 {[%emt 0:01:09]} 29. Re1 {[%emt 0:00:46]} Rfd8 {[%emt 0:01:17]} 30. Rc2 {[%emt 0:00:42]} Nxe5 {[%emt 0:02:03]} 31. Bxe5 {[%emt 0:00:02]} Rxe5 {[%emt 0:00:05]} 32. Rxe5 {[%emt 0:00:34]} Qxe5 {[%emt 0:00:04]} 33. Re2 {[%emt 0:00:12]} Qd6 {[%emt 0:00:26]} 34. Re4 {[%emt 0:01:28]} Qb6 {[%emt 0:00:30]} 35. b4 {[%emt 0:00:32]} a5 {[%emt 0:01:29]} 36. bxa5 {[%emt 0:00:29]} Qxa5 {[%emt 0:00:01]} 37. Kh2 {[%emt 0:00:30]} Qc5 {[%emt 0:00:43]} 38. g3 {[%emt 0:00:29]} b5 {[%emt 0:00:15]} 39. Qe2 {[%emt 0:00:32]} d3 {[%emt 0:00:48]} 40. Qe1 {[%emt 0:00:30]} d2 {[%emt 0:01:04]} 41. Re8+ {[%emt 0:30:01]} Kh7 {[%emt 0:30:14]} 42. Qb1+ {[%emt 0:00:25]} f5 {[%emt 0:00:10]} 43. Rxd8 {[%emt 0:01:04]} Qxf2+ {[%emt 0:00:05]} 44. Kh1 {[%emt 0:00:04]} Qe1+ {[%emt 0:00:05]} 45. Qxe1 {[%emt 0:00:09]} dxe1=Q+ {[%emt 0:00:07]} 46. Kg2 {[%emt 0:00:11]} Qe2+ {[%emt 0:00:22]} 47. Kg1 {[%emt 0:00:09]} Qf3 {[%emt 0:00:08]} 0-1

[Event "ESP-chT Div I 2018"]
[Site "Linares"]
[Date "2018.08.11"]
[Round "6"]
[White "Shvayger, Yuliya"]
[Black "Garcia Castany Musellas, Gal La"]
[Result "1/2-1/2"]
[ECO "C68"]
[WhiteElo "2390"]
[BlackElo "2203"]
[Annotator "NA"]
[PlyCount "66"]
[EventDate "2018.08.06"]
[EventType "team-tourn"]
[EventCountry "ESP"]
[SourceTitle "playchess.com"]
[Source "ChessBase"]
[SourceQuality "1"]
[TimeControl "40/5400+30:1800+30"]

1. e4 {[%emt 0:00:00]} e5 {[%emt 0:00:00]} 2. Nf3 {[%emt 0:00:00]} Nc6 {[%emt 0:00:00]} 3. Bb5 {[%emt 0:00:36]} a6 {[%emt 0:05:05]} 4. Bxc6 {[%emt 0:00:51]} dxc6 {[%emt 0:00:12]} 5. O-O {[%emt 0:00:13]} Qf6 {[%emt 0:01:10]} 6. d4 {[%emt 0:00:34]} exd4 {[%emt 0:02:18]} 7. Bg5 {[%emt 0:00:28]} Qd6 {[%emt 0:04:31]} 8. Nxd4 {[%emt 0:00:31]} Bd7 {[%emt 0:03:58]} 9. Nc3 {[%emt 0:01:14]} Qg6 {[%emt 0:06:46]} 10. Be3 {[%emt 0:01:49]} O-O-O {[%emt 0:01:51]} 11. Qe2 {[%emt 0:02:10]} Nf6 {[%emt 0:08:21]} 12. f3 {[%emt 0:01:27]} h5 {[%emt 0:02:55]} 13. Qf2 {[%emt 0:07:10]} h4 {[%emt 0:05:14]} 14. Nb3 {[%emt 0:04:37]} Kb8 {[%emt 0:00:41]} 15. Bc5 {[%emt 0:09:17]} Bxc5 {[%emt 0:00:30]} 16. Nxc5 {[%emt 0:00:30]} Bc8 {[%emt 0:28:12]} 17. Rfd1 {[%emt 0:01:22]} Qg5 {[%emt 0:03:04]} 18. b4 {[%emt 0:18:45]} Nh5 {[%emt 0:02:55]} 19. a4 {[%emt 0:01:10]} Nf4 {[%emt 0:05:02]} 20. Kh1 {[%emt 0:00:41]} Rxd1+ {[%emt 0:01:08]} 21. Rxd1 {[%emt 0:01:07]} Rd8 {[%emt 0:01:03]} 22. Nd3 {[%emt 0:02:32]} Qf6 {[%emt 0:04:03]} 23. Nxf4 {[%emt 0:12:56]} Rxd1+ {[%emt 0:00:26]} 24. Nxd1 {[%emt 0:00:05]} Qxf4 {[%emt 0:00:02]} 25. h3 {[%emt 0:00:35]} f5 {[%emt 0:07:20]} 26. Qd4 {[%emt 0:09:53]} fxe4 {[%emt 0:04:45]} 27. Qxe4 {[%emt 0:00:04]} Qd2 {[%emt 0:00:48]} 28. Ne3 {[%emt 0:00:30]} Qe1+ {[%emt 0:00:18]} 29. Kh2 {[%emt 0:00:03]} Qg3+ {[%emt 0:00:18]} 30. Kh1 {[%emt 0:00:29]} Qe1+ {[%emt 0:01:11]} 31. Kh2 {[%emt 0:00:02]} Qg3+ {[%emt 0:00:16]} 32. Kh1 {[%emt 0:00:01]} Qe1+ {[%emt 0:00:59]} 33. Kh2 {[%emt 0:00:03]} Qg3+ {[%emt 0:00:25]} 1/2-1/2